bitfinex-derivatives/quotes_SOLF0:USTF0_20241029
["timestamp","ask_amount","ask_price","bid_price","bid_amount"]
[1730172577970,71.98,181.48,181.37,9.87554649]
[1730172578764,2.7584,181.42,181.37,9.87554649]
[1730172579369,71.98,181.48,181.38,16.94588643]
[1730172579370,59.56,181.48,181.38,16.94588643]
[1730172579566,12.42,181.47,181.38,16.94588643]
[1730172581273,2.758,181.45,181.4,2.7586]
[1730172582373,12.42,181.47,181.38,343.7588]
[1730172582982,2.7582,181.44,181.38,343.7588]
[1730172583174,12.42,181.47,181.38,343.7588]
[1730172583875,2.7582,181.44,181.39,2.7588]
[1730172584081,12.42,181.47,181.39,2.7588]
[1730172585781,2.7582,181.43,181.39,2.7588]
[1730172592487,12.42,181.47,181.37,7.11654649]
[1730172592888,14.3578,181.46,181.42,2.7583]
[1730172594380,14.3578,181.46,181.42,13.35708771]
[1730172597785,2.7578,181.46,181.42,13.35708771]
[1730172597993,11.2,181.45,181.42,13.35708771]
[1730172598181,11.2,181.44,181.43,2.7582]
[1730172598987,11.2,181.45,181.44,2.758]
[1730172599383,11.2,181.45,181.44,10.59878771]
[1730172599583,11.2,181.45,181.44,2.758]
[1730172599783,11.2,181.45,181.37,7.11654649]
[1730172600686,11.2,181.45,181.39,2.7587]
[1730172600893,11.2,181.45,181.37,7.11654649]
[1730172601487,2.7584,181.42,181.38,2.7589]
[1730172601884,2.7582,181.43,181.38,2.7589]
[1730172602189,11.2,181.45,181.38,2.7589]
[1730172602389,2.7582,181.43,181.38,2.7589]
[1730172602587,2.7582,181.43,181.37,7.11654649]
[1730172602588,11.2,181.45,181.33,672.99047517]
[1730172603290,21.79878771,181.45,181.34,10.59878771]
[1730172603594,11.2,181.44,181.39,10.59878771]
[1730172603784,11.2,181.44,181.33,672.99047517]
[1730172603785,59.56,181.48,181.41,10.59878771]
[1730172603992,59.56,181.48,181.38,7.46500014]
[1730172603993,11.2,181.47,181.43,2.7582]
[1730172604289,59.58,181.51,181.46,10.59878771]
[1730172604482,59.58,181.51,181.49,2.7573]
[1730172604682,11.2,181.5,181.49,2.7573]
[1730172605088,59.58,181.51,181.5,2.7571]
[1730172605280,70.76,181.51,181.49,10.59878771]
[1730172605482,70.76,181.51,181.48,7.46262548]
[1730172605784,70.76,181.51,181.49,2.7571]
[1730172606390,70.76,181.51,181.49,2.7573]
[1730172606594,70.76,181.51,181.48,7.46262548]
[1730172606595,59.58,181.51,181.5,10.59663086]
[1730172606792,10.8,181.51,181.5,10.59663086]
[1730172607093,2.7559,181.58,181.5,10.59663086]
[1730172607390,10.8,181.57,181.5,10.59663086]
[1730172607597,59.58,181.58,181.53,10.59663086]
[1730172607792,70.38,181.58,181.53,18.05650948]
[1730172608097,70.38,181.58,181.56,2.7561]
[1730172608887,70.38,181.58,181.53,7.45987862]
[1730172609097,70.38,181.58,181.55,2.7563]
[1730172609694,70.38,181.58,181.53,7.45987862]
[1730172610400,2.7561,181.57,181.53,7.45987862]
[1730172610697,70.38,181.58,181.53,7.45987862]
[1730172610901,73.1359,181.58,181.53,10.21647862]
[1730172611085,70.38,181.58,181.53,7.45987862]
[1730172611599,73.1359,181.58,181.53,10.21647862]
[1730172612494,70.38,181.58,181.53,7.45987862]
[1730172613293,2.7563,181.56,181.53,7.45987862]
[1730172614501,2.7565,181.54,181.53,7.45987862]
[1730172616595,2.7564,181.55,181.53,7.45987862]
[1730172619905,59.58,181.58,181.53,7.45987862]
[1730172620206,10.44,181.57,181.53,7.45987862]
[1730172621705,2.7565,181.54,181.53,7.45987862]
[1730172622202,2.7571,181.51,181.48,7.46262548]
[1730172622401,16.94351546,181.56,181.48,7.46262548]
[1730172622909,2.7567,181.53,181.48,7.46262548]
[1730172623207,2.79752918,181.55,181.48,7.46262548]
[1730172624011,2.7571,181.51,181.48,7.46262548]
[1730172624214,16.94351546,181.56,181.49,2.7572]
[1730172625003,2.7565,181.54,181.49,2.7572]
[1730172625206,2.7565,181.54,181.5,2.757]
[1730172625911,2.78383004,181.65,181.49,16.94351546]
[1730172626115,10.08,181.64,181.49,16.94351546]
[1730172626305,12.78853399,181.64,181.49,16.94351546]
[1730172627217,2.7556,181.6,181.53,2.7566]
[1730172627510,2.7556,181.6,181.53,7.53374051]
[1730172627905,2.7556,181.6,181.55,2.7562]
[1730172628510,2.7554,181.62,181.56,2.7561]
[1730172628712,10.08,181.61,181.53,7.53374051]
[1730172629406,12.8356,181.61,181.56,2.7561]
[1730172629810,2.7556,181.61,181.53,7.53374051]
[1730172630017,59.56,181.66,181.55,16.94468389]
[1730172630212,9.7,181.65,181.55,16.94468389]
[1730172630511,2.7551,181.64,181.57,10.59163223]
[1730172631015,9.7,181.65,181.57,10.59163223]
[1730172631216,2.7552,181.63,181.59,2.7556]
[1730172631406,2.7552,181.63,181.59,10.28790352]
[1730172632314,59.56,181.66,181.61,2.7554]
[1730172632617,9.7,181.65,181.59,7.53230352]
[1730172632820,2.7549,181.65,181.61,2.7553]
[1730172633115,9.7,181.64,181.61,2.7553]
[1730172633313,9.7,181.64,181.59,7.53230352]
[1730172633914,9.7,181.64,181.61,2.7553]
[1730172634307,9.7,181.64,181.59,7.53230352]
[1730172634513,9.7,181.64,181.6,2.7556]
[1730172634514,12.455,181.64,181.6,2.7556]
[1730172635732,2.7553,181.63,181.59,10.28800352]
[1730172635917,9.7,181.64,181.59,7.53230352]
[1730172636419,2.7553,181.62,181.59,7.53230352]
[1730172636813,9.7,181.64,181.59,7.53230352]
[1730172638218,70.15163223,181.66,181.6,10.59163223]
[1730172638219,9.32,181.63,181.6,10.59163223]
[1730172638626,9.32,181.63,181.6,2.7555]
[1730172638919,9.32,181.63,181.59,7.53230352]
[1730172639826,9.32,181.63,181.6,2.7556]
[1730172640816,9.32,181.63,181.59,7.53230352]
[1730172641119,9.32,181.63,181.62,2.7553]
[1730172641319,9.32,181.63,181.59,7.53230352]
[1730172641520,9.32,181.63,181.6,2.7555]
[1730172641718,9.32,181.63,181.59,7.53230352]
[1730172642322,9.32,181.63,181.6,2.7554]
[1730172644425,9.32,181.63,181.6,2.7556]
[1730172644946,9.32,181.63,181.59,7.53230352]
[1730172646245,9.32,181.63,181.61,2.7554]
[1730172648144,8.94,181.63,181.61,2.7554]
[1730172650240,8.94,181.63,181.59,7.53230352]
[1730172650437,8.94,181.63,181.6,2.7556]
[1730172653548,59.52,181.69,181.61,10.59163223]
[1730172653756,59.52,181.69,181.62,10.59163223]
[1730172653757,68.46,181.69,181.62,10.59163223]
[1730172654238,79.05163223,181.69,181.6,15.42713223]
[1730172654436,79.05077401,181.69,181.6,4.8355]
[1730172654836,2.7549,181.65,181.6,7.591]
[1730172658138,2.7549,181.65,181.6,18.18177401]
[1730172658341,2.7549,181.65,181.63,6.77821948]
[1730172659252,68.46,181.69,181.64,6.77821948]
[1730172659253,2.7546,181.67,181.64,6.77821948]
[1730172659450,2.7546,181.67,181.66,6.77821948]
[1730172659943,8.54,181.67,181.66,6.77821948]
[1730172660352,8.54,181.67,181.64,6.77821948]
[1730172660854,2.7547,181.66,181.64,6.77821948]
[1730172662052,8.54,181.67,181.65,6.77821948]
[1730172662242,8.54,181.67,181.66,6.77821948]
[1730172663250,59.52,181.69,181.66,6.77821948]
[1730172663453,59.52,181.69,181.68,6.77821948]
[1730172663954,68.06,181.69,181.68,6.77821948]
[1730172664747,8.54,181.78,181.68,6.77821948]
[1730172664943,8.54,181.78,181.6,4.8355]
[1730172665139,2.3825,181.82,181.77,6.77821948]
[1730172665343,2.3825,181.82,181.61,5.5109]
[1730172665344,8.54,181.81,181.8,6.77821948]
[1730172665854,2.7522,181.83,181.8,6.77821948]
[1730172666053,8.54,181.82,181.81,6.77821948]
[1730172666253,2.5777,181.9,181.81,6.77821948]
[1730172666453,6.77821948,181.87,181.81,6.77821948]
[1730172667049,2.7519,181.85,181.81,6.77821948]
[1730172667257,6.77821948,181.87,181.81,6.77821948]
[1730172667550,6.77821948,181.87,181.82,6.77821948]
[1730172667761,11.32915409,181.89,181.82,6.77821948]
[1730172668053,11.32915409,181.89,181.78,7.48810192]
[1730172668054,6.77821948,181.84,181.78,7.48810192]
[1730172668254,6.77821948,181.81,181.78,7.48810192]
[1730172668453,8.18,181.8,181.78,7.48810192]
[1730172668958,8.18,181.8,181.79,6.77196515]
[1730172669349,8.18,181.85,181.79,6.77196515]
[1730172669550,8.18,181.85,181.82,6.77196515]
[1730172669751,8.18,181.85,181.8,6.77196515]
[1730172669962,2.7524,181.81,181.79,6.77196515]
[1730172670152,6.77196515,181.8,181.78,7.48810192]
[1730172670351,2.7527,181.79,181.78,7.48810192]
[1730172672449,10.9327,181.79,181.78,7.48810192]
[1730172673859,59.48,182.02,181.78,7.48810192]
[1730172674057,10.58282254,181.93,181.81,10.58282254]
[1730172676363,8.18,181.92,181.84,10.58282254]
[1730172676859,2.7514,181.88,181.84,10.58282254]
[1730172677670,8.18,181.92,181.84,13.33462254]
[1730172677854,5.0209,181.95,181.84,13.33462254]
[1730172677855,5.0209,181.95,181.84,10.58282254]
[1730172678061,8.18,181.96,181.89,10.58282254]
[1730172678358,10.58282254,181.95,181.88,7.551308]
[1730172678957,2.7512,181.89,181.88,7.551308]
[1730172679159,10.9312,181.89,181.88,7.551308]
[1730172679863,8.18,181.89,181.88,10.302708]
[1730172680059,8.18,181.89,181.88,7.551308]
[1730172680259,5.0185,181.99,181.88,7.551308]
[1730172680461,8.18,181.98,181.88,7.551308]
[1730172680859,2.7504,181.95,181.88,7.551308]
[1730172681162,8.18,181.97,181.88,7.551308]
[1730172681966,2.7501,181.97,181.89,13.33392254]
[1730172682165,22.37178468,182.13,181.88,7.551308]
[1730172682166,8.18,181.99,181.94,10.58282254]
[1730172682469,8.18,181.98,181.94,10.58282254]
[1730172682671,2.7503,181.95,181.94,10.58282254]
[1730172683071,8.18,181.98,181.91,10.58282254]
[1730172683371,8.18,181.98,181.89,10.58282254]
[1730172683566,8.18,181.98,181.91,10.58282254]
[1730172683765,2.7506,181.94,181.91,10.58282254]
[1730172684072,8.18,181.98,181.93,10.58282254]
[1730172684270,2.7501,181.97,181.93,13.33322254]
[1730172684461,8.18,181.97,181.93,13.33322254]
[1730172685160,2.75,181.98,181.93,13.33322254]
[1730172685364,10.93,181.98,181.93,13.33322254]
[1730172685761,2.75,181.98,181.93,13.33322254]
[1730172685966,10.59,181.98,181.93,13.33322254]
[1730172686468,59.48,182.02,181.96,10.58282254]
[1730172686671,2.3966,182.08,181.98,10.58282254]
[1730172686973,18.42282254,182.07,181.97,7.54718586]
[1730172687163,10.58282254,182.04,181.97,7.54718586]
[1730172687474,2.7498,181.98,181.97,7.54718586]
[1730172687671,10.5898,181.98,181.97,7.54718586]
[1730172689073,7.84,181.98,181.97,7.54718586]
[1730172689573,7.84,182.0,181.97,7.54718586]
[1730172689768,2.7497,181.99,181.97,7.54718586]
[1730172690171,10.5895,182.0,181.97,7.54718586]
[1730172690373,7.84,182.0,181.98,10.58282254]
[1730172690974,10.5896,182.0,181.98,10.58282254]
[1730172691366,7.84,182.0,181.98,10.58282254]
[1730172692271,10.5897,182.0,181.98,10.58282254]
[1730172692875,7.84,182.0,181.97,7.54718586]
[1730172693674,7.84,182.0,181.91,334.38997517]
[1730172693675,7.84,182.0,181.91,331.99047517]
[1730172693865,18.42282254,182.0,181.91,331.99047517]
[1730172694580,2.7507,181.93,181.91,331.99047517]
[1730172694876,10.5907,181.93,181.91,331.99047517]
[1730172697774,10.5907,181.93,181.92,10.58282254]
[1730172697775,7.84,181.93,181.92,10.58282254]
[1730172698877,2.7505,181.94,181.92,10.58282254]
[1730172699769,7.5,181.95,181.92,10.58282254]
[1730172700073,2.7506,181.93,181.92,10.58282254]
[1730172704873,7.5,181.95,181.92,10.58282254]
[1730172705071,7.5,181.97,181.94,10.58282254]
[1730172705271,7.5,181.96,181.94,10.58282254]
[1730172707781,7.5,181.96,181.92,10.58282254]
[1730172707983,2.7504,181.95,181.92,10.58282254]
[1730172709188,10.2504,181.95,181.92,10.58282254]
[1730172709686,10.2504,181.95,181.82,5.0401]
[1730172709687,7.5,181.95,181.94,13.33322254]
[1730172709892,7.5,181.97,181.94,10.58282254]
[1730172710090,7.5,181.97,181.92,2.5804]
[1730172710091,7.5,182.01,181.96,10.58282254]
[1730172710591,7.5,182.01,181.92,13.16322254]
[1730172710783,2.7506,181.94,181.92,13.16322254]
[1730172710992,7.18,181.95,181.92,13.16322254]
[1730172712189,9.9304,181.95,181.92,13.16322254]
[1730172712885,9.9304,181.95,181.92,2.5804]
[1730172713187,9.9304,181.95,181.92,13.16322254]
[1730172713387,9.9304,181.95,181.92,2.5804]
[1730172713897,2.7506,181.94,181.92,2.5804]
[1730172714190,7.18,181.95,181.92,2.5804]
[1730172714591,9.9304,181.95,181.92,5.3311]
[1730172714786,9.9304,181.95,181.92,2.5804]
[1730172716096,9.9304,181.95,181.82,2.4625]
[1730172716097,2.7505,181.94,181.89,10.58282254]
[1730172716395,7.18,181.95,181.89,10.58282254]
[1730172718097,2.7507,181.93,181.89,10.58282254]
[1730172720086,7.18,181.95,181.91,10.58282254]
[1730172720592,7.18,181.94,181.91,10.58282254]
[1730172720794,7.18,181.94,181.92,2.7507]
[1730172721189,7.18,181.94,181.91,10.58282254]
[1730172721391,7.18,181.94,181.91,13.33372254]
[1730172721591,7.18,181.94,181.89,10.58282254]
[1730172722606,7.18,181.94,181.88,10.57534515]
[1730172722901,9.9305,181.94,181.9,2.751]
[1730172723092,7.18,181.94,181.88,10.57534515]
[1730172723794,7.18,181.94,181.93,6.76685734]
[1730172724191,7.18,181.94,181.89,2.7511]
[1730172724392,6.76685734,181.96,181.91,6.76685734]
[1730172724602,6.86,181.95,181.91,6.76685734]
[1730172724898,6.86,181.95,181.92,6.76685734]
[1730172725196,2.7504,181.94,181.92,6.76685734]
[1730172726001,13.62685734,181.95,181.83,2.5252]
[1730172726190,6.76685734,181.93,181.89,6.76685734]
[1730172726887,2.751,181.91,181.89,6.76685734]
[1730172727904,2.751,181.91,181.9,6.76685734]
[1730172728797,13.62685734,181.95,181.9,6.76685734]
[1730172728798,6.86,181.95,181.9,6.76685734]
[1730172729104,62.0213,181.98,181.94,6.76685734]
[1730172729298,62.0213,181.98,181.83,2.5252]
[1730172729299,6.86,181.97,181.96,6.76685734]
[1730172729904,6.86,181.97,181.95,6.76685734]
[1730172730099,6.86,181.97,181.96,6.76685734]
[1730172730494,6.86,181.97,181.96,6.76467064]
[1730172731204,9.61,181.97,181.96,6.76467064]
[1730172731808,2.7504,181.95,181.94,6.76467064]
[1730172732011,2.7504,181.95,181.91,2.7509]
[1730172734706,6.86,181.94,181.91,2.7509]
[1730172737406,9.6105,181.94,181.91,2.7509]
[1730172738114,2.7507,181.93,181.9,10.57274173]
[1730172738317,6.86,181.94,181.9,10.57274173]
[1730172738611,2.7508,181.92,181.9,10.57274173]
[1730172741414,9.2908,181.92,181.9,10.57274173]
[1730172741607,9.2904,181.95,181.91,2.7509]
[1730172743725,2.7507,181.93,181.9,10.57274173]
[1730172744205,2.7508,181.92,181.88,13.32404173]
[1730172744403,2.7508,181.92,181.88,10.57274173]
[1730172744804,2.7506,181.93,181.89,2.7512]
[1730172745213,6.54,181.95,181.88,10.57274173]
[1730172745414,2.7506,181.93,181.89,2.7512]
[1730172746914,2.7506,181.93,181.9,13.32374173]
[1730172747320,2.7506,181.93,181.9,10.57274173]
[1730172748615,6.54,181.97,181.92,10.57274173]
[1730172748811,6.54,181.97,181.94,10.57274173]
[1730172749220,9.29,181.97,181.94,10.57274173]
[1730172749621,6.54,181.97,181.94,10.57274173]
[1730172749825,2.7502,181.96,181.94,10.57274173]
[1730172750621,2.7502,181.96,181.94,10.57002558]
[1730172751627,2.7502,181.96,181.95,6.76471572]
[1730172754235,9.29,181.97,181.95,6.76471572]
[1730172754436,6.2,181.97,181.95,6.76471572]
[1730172754824,2.7492,182.03,181.95,6.76471572]
[1730172755029,6.2,182.02,181.88,5.5026]
[1730172755227,6.2,182.02,181.97,2.7499]
[1730172755228,8.9493,182.02,181.97,2.7499]
[1730172755424,8.9493,182.02,181.89,8.7779]
[1730172755627,2.7493,182.02,181.9,8.78645163]
[1730172755936,2.7493,182.02,181.9,2.4279]
[1730172756233,2.7493,182.02,181.98,2.7498]
[1730172756434,2.7493,182.02,182.01,6.76471572]
[1730172756634,2.7494,182.01,181.9,2.4279]
[1730172756832,2.7494,182.01,182.0,6.76471572]
[1730172761237,2.7488,182.05,182.01,2.7493]
[1730172761538,2.6085,182.06,182.04,6.76471572]
[1730172761737,6.2,182.05,182.04,6.76471572]
[1730172762237,8.9488,182.05,182.04,6.76471572]
[1730172762841,8.9488,182.05,181.92,2.4541]
[1730172762842,6.2,182.05,181.92,2.4541]
[1730172763036,2.7493,182.02,181.92,2.4541]
[1730172763341,2.7493,182.02,182.01,6.76471572]
[1730172763526,8.9488,182.05,182.01,9.51401572]
[1730172763727,59.42,182.07,182.04,6.76471572]
[1730172763933,65.62,182.07,182.06,6.76471572]
[1730172764436,59.42,182.07,182.06,6.76471572]
[1730172764627,65.62,182.07,182.06,6.76471572]
[1730172765338,68.3685,182.07,182.06,6.76471572]
[1730172766127,2.7488,182.05,182.01,2.7493]
[1730172766338,65.62,182.07,182.03,6.76471572]
[1730172766339,72.38471572,182.07,182.03,6.76471572]
[1730172766539,65.62,182.07,182.04,6.76471572]
[1730172766938,2.7489,182.05,182.04,6.76471572]
[1730172769044,65.62,182.07,182.04,6.76471572]
[1730172769242,6.2,182.07,182.06,6.76471572]
[1730172769436,8.736,182.1,182.06,6.76471572]
[1730172769638,8.736,182.1,182.08,6.76471572]
[1730172770146,8.736,182.1,182.06,6.76471572]
[1730172770451,2.7485,182.08,182.06,6.76471572]
[1730172771545,2.7485,182.07,182.06,6.76471572]
[1730172773043,5.9,182.09,181.93,11.7011]
[1730172773044,2.7487,182.06,182.02,2.7491]
[1730172773251,6.76471572,182.07,182.03,6.76471572]
[1730172773747,2.7489,182.04,182.03,6.76471572]
[1730172774546,6.76471572,182.07,182.02,6.76471572]
[1730172774847,6.76471572,182.07,182.03,6.76471572]
[1730172776242,2.7489,182.04,182.03,6.76471572]
[1730172776945,2.7491,182.03,182.02,6.76471572]
[1730172777649,5.88,182.03,182.0,6.76471572]
[1730172778240,2.7494,182.01,182.0,6.76471572]
[1730172779446,2.7496,182.0,181.97,2.7499]
[1730172779755,2.7496,182.0,181.99,6.76471572]
[1730172781156,5.88,182.03,181.92,2.4541]
[1730172781357,2.7499,181.98,181.94,2.7504]
[1730172781552,6.76471572,182.01,181.92,2.4541]
[1730172781852,6.76471572,182.0,181.96,6.76471572]
[1730172782251,6.76471572,182.0,181.86,341.0]
[1730172782464,6.76471572,181.99,181.93,6.76471572]
[1730172782756,5.9,181.98,181.93,6.76471572]
[1730172783344,6.76471572,181.97,181.93,6.76471572]
[1730172783542,2.7504,181.94,181.88,2.7512]
[1730172783744,5.9,181.93,181.91,6.76471572]
[1730172783946,5.9,181.92,181.91,6.76471572]
[1730172784150,2.7509,181.91,181.9,6.76471572]
[1730172785255,8.6508,181.92,181.9,6.76471572]
[1730172785462,8.6508,181.92,181.91,6.76471572]
[1730172786460,5.9,181.92,181.9,6.76471572]
[1730172786853,2.7509,181.91,181.88,6.76471572]
[1730172787049,5.9,181.92,181.88,6.76471572]
[1730172787263,6.76471572,181.91,181.87,6.76471572]
[1730172787465,6.76471572,181.91,181.84,115.90135056]
[1730172787757,5.9,181.92,181.77,343.541]
[1730172787758,6.76471572,181.88,181.77,343.541]
[1730172787950,2.7518,181.86,181.84,6.76471572]
[1730172788556,2.7518,181.86,181.85,6.76471572]
[1730172789059,2.7518,181.85,181.84,6.76471572]
[1730172789451,5.9,181.87,181.84,6.76471572]
[1730172789655,8.6515,181.87,181.86,6.76471572]
[1730172791061,5.9,181.87,181.86,6.76471572]
[1730172791959,5.9,181.87,181.77,343.541]
[1730172792153,5.9,181.87,181.85,6.76471572]
[1730172792154,8.6515,181.87,181.85,6.76471572]
[1730172792554,8.6515,181.87,181.86,6.7689416]
[1730172793457,5.9,181.87,181.83,10.57645893]
[1730172793660,2.7517,181.86,181.83,10.57645893]
[1730172795364,2.7517,181.86,181.77,343.541]
[1730172795365,2.7519,181.85,181.81,2.7524]
[1730172797761,5.9,181.87,181.77,341.0]
[1730172797961,5.9,181.87,181.74,2.4408]
[1730172797962,10.57645893,181.86,181.75,10.57645893]
[1730172798768,2.7522,181.83,181.78,2.7528]
[1730172798963,5.9,181.82,181.78,2.7528]
[1730172799164,5.9,181.82,181.75,10.57645893]
[1730172800257,2.7526,181.8,181.76,10.57836255]
[1730172801254,2.7526,181.8,181.76,13.33156255]
[1730172802354,2.7526,181.8,181.76,13.33153917]
[1730172805771,2.7528,181.79,181.76,10.57833917]
[1730172806974,2.7528,181.79,181.76,10.57833917]
[1730172809275,2.7528,181.79,181.76,13.33143917]
[1730172809972,5.9,181.82,181.76,13.33143917]
[1730172809973,5.9,181.82,181.76,10.57833917]
[1730172810175,2.7528,181.79,181.76,10.57833917]
[1730172811277,2.7526,181.8,181.76,13.33153917]
[1730172812562,2.7526,181.8,181.76,2.7532]
[1730172813377,2.7526,181.8,181.77,6.77109931]
[1730172816681,12.67109931,181.82,181.77,6.77109931]
[1730172816881,2.7527,181.79,181.77,6.77109931]
[1730172817072,2.7527,181.79,181.76,2.7532]
[1730172817274,2.7529,181.78,181.76,6.77109931]
[1730172817583,5.72,181.77,181.75,9.52439931]
[1730172817979,5.72,181.77,181.75,6.77109931]
[1730172818175,5.72,181.77,181.72,115.96855691]
[1730172818176,12.49109931,181.77,181.72,115.96855691]
[1730172818492,12.49109931,181.77,181.67,2.436]
[1730172818493,6.77109931,181.75,181.71,6.77109931]
[1730172818778,2.7535,181.74,181.71,6.77109931]
[1730172818982,6.77109931,181.75,181.71,6.77109931]
[1730172820278,2.4601,181.85,181.73,6.77109931]
[1730172820479,6.77109931,181.83,181.78,6.77109931]
[1730172820680,2.7528,181.79,181.76,6.77109931]
[1730172820878,5.72,181.78,181.76,6.77109931]
[1730172821881,2.7528,181.79,181.76,6.77109931]
[1730172822081,2.4601,181.85,181.68,343.3797]
[1730172822082,2.4601,181.85,181.78,6.77109931]
[1730172822284,5.72,181.84,181.81,6.77109931]
[1730172823188,2.7523,181.82,181.79,6.77109931]
[1730172827093,2.7525,181.81,181.79,6.77109931]
[1730172827277,9.52359931,181.81,181.78,6.77109931]
[1730172828384,2.7525,181.81,181.78,6.77109931]
[1730172829795,59.46,181.87,181.8,6.77109931]
[1730172829982,59.46,181.87,181.83,6.77109931]
[1730172829983,5.72,181.86,181.83,6.77109931]
[1730172830388,12.49109931,181.86,181.81,6.77109931]
[1730172830588,12.49109931,181.86,181.78,6.77109931]
[1730172830589,6.77109931,181.83,181.78,6.77109931]
[1730172832289,2.7525,181.81,181.78,6.77109931]
[1730172832591,5.72,181.8,181.78,6.77109931]
[1730172832991,5.72,181.8,181.79,6.77109931]
[1730172834389,5.72,181.8,181.77,9.52399931]
[1730172834781,5.72,181.8,181.79,6.77109931]
[1730172839791,8.4726,181.8,181.79,6.77109931]
[1730172840292,5.72,181.8,181.68,343.3797]
[1730172840483,2.7532,181.76,181.73,6.77109931]
[1730172840690,5.72,181.75,181.73,6.77109931]
[1730172841697,5.72,181.75,181.73,9.52469931]
[1730172842498,5.72,181.75,181.73,6.77109931]
[1730172843291,8.4734,181.75,181.71,2.7538]
[1730172843503,5.72,181.75,181.71,6.77109931]
[1730172844393,6.77109931,181.73,181.68,6.77109931]
[1730172844788,2.7542,181.7,181.68,6.77109931]
[1730172845088,5.72,181.69,181.67,6.77109931]
[1730172845294,5.72,181.68,181.67,6.77109931]
[1730172845491,5.72,181.68,181.66,6.77109931]
[1730172845891,5.72,181.68,181.67,6.77109931]
[1730172850805,59.46,181.74,181.67,6.77109931]
[1730172851005,5.72,181.73,181.72,6.77109931]
[1730172855801,59.46,181.74,181.73,2.7536]
[1730172856008,1.8036,181.74,181.73,2.7536]
[1730172856204,5.72,181.75,181.72,6.77109931]
[1730172856404,5.72,181.75,181.74,6.77109931]
[1730172856598,5.72,181.76,181.74,6.77109931]
[1730172856793,5.72,181.76,181.75,6.77109931]
[1730172857205,5.72,181.76,181.75,9.52439931]
[1730172857799,5.72,181.77,181.75,6.77109931]
[1730172858000,5.72,181.77,181.76,6.77109931]
[1730172858201,5.72,181.79,181.77,2.7529]
[1730172858702,5.72,181.79,181.78,6.76852241]
[1730172858901,5.72,181.79,181.77,13.32872967]
[1730172859510,5.72,181.79,181.77,2.7529]
[1730172861200,5.72,181.79,181.75,13.32902967]
[1730172861410,5.72,181.79,181.75,10.57582967]
[1730172861903,5.72,181.79,181.75,13.32902967]
[1730172862311,5.72,181.79,181.75,10.57582967]
[1730172862504,5.72,181.79,181.76,2.7531]
[1730172864003,5.72,181.79,181.75,10.57582967]
[1730172864308,8.4728,181.79,181.75,2.7533]
[1730172869412,59.48,181.83,181.79,2.7526]
[1730172869713,5.7,181.82,181.77,10.57582967]
[1730172870011,8.4524,181.82,181.78,2.7529]
[1730172870608,59.48,181.83,181.77,10.57582967]
[1730172870911,5.7,181.82,181.79,13.32842967]
[1730172872114,59.48,181.83,181.79,10.57582967]
[1730172872615,65.18,181.83,181.79,10.57582967]
[1730172872816,65.18,181.83,181.8,2.7525]
[1730172873613,65.18,181.83,181.77,2.753]
[1730172873808,65.18,181.83,181.75,10.57582967]
[1730172874010,2.7527,181.8,181.75,10.57582967]
[1730172874319,65.18,181.83,181.75,13.32902967]
[1730172874515,2.7527,181.8,181.75,13.32902967]
[1730172874715,75.75582967,181.83,181.73,10.57582967]
[1730172874911,75.75582967,181.83,181.74,2.7534]
[1730172875517,2.7528,181.79,181.74,2.7534]
[1730172875718,5.7,181.78,181.76,2.753]
[1730172875915,5.7,181.78,181.75,10.57582967]
[1730172876510,5.7,181.78,181.76,2.7532]
[1730172878518,5.7,181.78,181.76,13.33070228]
[1730172879024,5.7,181.78,181.76,10.57750228]
[1730172879221,5.7,181.81,181.8,2.7525]
[1730172879411,5.7,181.82,181.79,10.57750228]
[1730172879616,5.7,181.82,181.71,4.7819]